Cogmind - Beta 14 @@@ ROGUE MODE // 2024.10.19 @ 14:31:11 Player: buwwet Result: Destroyed by Shrapnel Trap Performance ------------- Evolutions (0) 0 Regions Visited (3) 600 Robots Destroyed (36) 180 Value Destroyed (750) 750 Prototype IDs (0) 0 Alien Tech Used (0) 0 Bonus (0) 0 TOTAL SCORE: 1530 Bonus ------- None Cogmind --------- Core Integrity 0/250 Matter 246/300 Energy 96/100 System Corruption 0% Temperature Cool (2) Movement Treading (250) Ox1 Location -10/Subcaves Parts ------- > --- POWER (1) -------- Subdweller Power Source > --- PROPULSION (2) --- Light Treads Spiked Treads > --- UTILITY (2) ------ Large Storage Unit Makeshift Light Armor Plating > --- WEAPON (2) ------- Subdweller Beam Cannon Subdweller Machine Gun > --- INVENTORY (15) --- Spiked Treads Aluminum Leg Weight Redist. System Subdweller Optics Sensor Array Signal Interpreter Seismic Detector Makeshift Light Armor Plating Scrap Shield Subdweller Laser Subdweller Machine Gun Subdweller Machine Gun Grenade Launcher Scrap Shield Fragment (48) Peak State ------------ > --- POWER ------------ Subdweller Power Source > --- PROPULSION ------- Spiked Treads Spiked Treads > --- UTILITY ---------- Large Storage Unit Makeshift Light Armor Plating > --- WEAPON ----------- Subdweller Machine Gun Subdweller Machine Gun > --- INVENTORY -------- Light Treads Aluminum Leg Weight Redist. System Subdweller Optics Sensor Array Signal Interpreter Seismic Detector Scrap Shield Subdweller Laser Subdweller Beam Cannon Subdweller Machine Gun Grenade Launcher Scrap Shield Fragment [Rating: 17] Favorites ----------- Power Light Ion Engine Engine Light Ion Engine Propulsion Light Treads Treads Light Treads Leg Aluminum Leg Utility Large Storage Unit Device Seismic Detector Storage Large Storage Unit Protection Light Armor Plating Weapon Subdweller Machine Gun Energy Gun Medium Laser Energy Cannon Subdweller Beam Cannon Ballistic Gun Subdweller Machine Gun Launcher Grenade Launcher Build | -11 -10 -10 -10 ------- Run | Yrd Mat Min Sub Slots Evolved . | . . . . Power . | . . . . Propulsion . | . . . . Utility . | . . . . Weapon . | . . . . Parts Attached 42 | 8 12 7 15 Power 7 | 1 3 1 2 Engine 7 | 1 3 1 2 Core . | . . . . Reactor . | . . . . Propulsion 14 | 2 4 3 5 Treads 8 | 1 1 2 4 Leg 6 | 1 3 1 1 Wheel . | . . . . Hover . | . . . . Flight . | . . . . Utility 7 | 2 2 1 2 Device 2 | 1 1 . . Storage 3 | 1 1 1 . Processor . | . . . . Hackware . | . . . . Protection 2 | . . . 2 Artifact . | . . . . Weapon 14 | 3 3 2 6 Energy Gun 3 | 2 1 . . Energy Cannon 1 | . . . 1 Ballistic Gun 9 | 1 2 1 5 Ballistic Cannon . | . . . . Launcher 1 | . . 1 . Special Weapon . | . . . . Impact Weapon . | . . . . Slashing Weapon . | . . . . Piercing Weapon . | . . . . Special Melee Weapon . | . . . . Unidentified Prototypes . | . . . . Parts Lost 6 | . 1 3 2 Power 3 | . 1 1 1 Propulsion 1 | . . 1 . Utility 1 | . . . 1 Weapon 1 | . . 1 . Highest Loss Streak 2 | . 1 2 1 To Critical Strikes . | . . . . Average Slot Usage (%) 99 | . 100 98 99 Engine 13 | . 14 13 13 Treads 16 | . 14 20 16 Leg 11 | . 14 7 11 Device 8 | . 14 14 1 Storage 14 | . 14 14 14 Protection 5 | . . . 12 Energy Gun 8 | . 14 14 1 Ballistic Gun 19 | . 14 13 25 Peak Build Rating 17 | 7 9 9 17 Average Rating 9 | 5 7 8 12 On Entrance 6 | . 7 9 9 Naked Turns . | . . . . Heaviest Build 41 | 14 20 30 41 Greatest Support 40 | 20 20 40 40 Greatest Overweight (x) 1 | 1 1 1 1 Average Overweight (x) . | . . . . Largest Inventory Capacity 15 | 8 10 15 15 Average Capacity 12 | 7 8 14 15 Most Carried 15 | 5 10 11 15 Average Carried 11 | 2 8 10 14 Final Capacity 15 | 8 10 15 15 Final Carried 15 | 4 10 10 15 Class Distribution -------------------- 50% | Mutant 41% | Scavenger-Mutant 8% | Derelict-Mutant Dominant Class ---------------- Mutant | -10/Materials Scavenger-Mutant | -10/Mines Mutant | -10/Subcaves Resources | -11 -10 -10 -10 ----------- Run | Yrd Mat Min Sub Matter Collected 883 | 207 362 118 196 Remotely . | . . . . Salvage Created 962 | 19 463 269 211 Parts 85 | 3 38 20 24 Haulers Intercepted 2 | . 2 . . Recyclers Shooed . | . . . . Parts Field Recycled . | . . . . Retrieved Matter . | . . . . Parts Self-Destructed 13 | . . . 13 Prevented . | . . . . Kills | -11 -10 -10 -10 ------- Run | Yrd Mat Min Sub Combat Hostiles Destroyed 31 | . 14 8 9 Guns 31 | . 14 8 9 Classes Destroyed 6 | 1 4 . 1 Tunneler 1 | 1 . . . Hauler 2 | . 2 . . Watcher 2 | . 2 . . Swarmer 16 | . 8 3 5 Grunt 11 | . 6 5 . Subdweller 4 | . . . 4 Best Kill Streak 3 | 1 3 3 2 Combat Bots Only 3 | . 3 3 2 Max Kills in Single Turn 2 | 1 2 1 2 Gunslinging 1 | . 1 . . Exploded . | . . . . Melee . | . . . . Uniques/NPCs Destroyed . | . . . . Combat | -11 -10 -10 -10 -------- Run | Yrd Mat Min Sub Hostile Shots Fired 157 | . 83 30 44 Missed 39 | . 25 4 10 Damage Taken 1467 | . 517 312 638 Core 276 | . 49 46 181 Absorbed by Shields . | . . . . Core Remaining (%) 100 | 100 . . . Volleys Fired 111 | 1 57 27 26 Largest 2 | 2 2 2 2 Hottest 80 | 60 70 80 80 Shots Fired 213 | 2 114 47 50 Gun 209 | 2 114 45 48 Cannon 2 | . . . 2 Launcher 2 | . . 2 . Special . | . . . . Kinetic 127 | 1 57 24 45 Thermal 84 | 1 57 21 5 Explosive 2 | . . 2 . Electromagnetic . | . . . . Robot Hit Streak 12 | 1 11 5 12 Robot Miss Streak 4 | 1 4 2 3 Penetration Max . | . . . . Secondary Targets 2 | . 2 . . Max Gunslinging Chain 1 | . 1 . . Shots Hit Robots 122 | 1 68 22 31 Core Hits 52 | 1 28 10 13 Critical Kills 1 | . . . 1 Critical Parts Destroyed 1 | . . 1 . Critical Strikes 10 | . 4 4 2 Burn 8 | . 4 3 1 Destroy 2 | . . 1 1 Melee Attacks . | . . . . Impact . | . . . . Slashing . | . . . . Piercing . | . . . . Sneak Attacks . | . . . . Combat Hostiles . | . . . . Follow-up Attacks . | . . . . Damage Inflicted 1752 | 12 865 360 515 Guns 1752 | 12 865 360 515 Cannons . | . . . . Explosions . | . . . . Melee . | . . . . Ramming . | . . . . Kinetic 1129 | 12 420 194 503 Thermal 623 | . 445 166 12 Explosive . | . . . . Electromagnetic . | . . . . Impact . | . . . . Slashing . | . . . . Piercing . | . . . . Highest Corruption . | . . . . Average Corruption . | . . . . Corruption Purged . | . . . . Corruption Blocked . | . . . . Overload Shots . | . . . . Overflow Damage 3 | . . 3 . Projectiles . | . . . . Explosions 3 | . . 3 . Melee . | . . . . Knockbacks . | . . . . Impact . | . . . . Kinetic . | . . . . Secondary . | . . . . Self-Inflicted Damage 63 | . . 63 . Shots 2 | . . 2 . Rammed . | . . . . Targets Rammed . | . . . . Kicked . | . . . . Crushed . | . . . . Highest Temperature 132 | . 102 132 . Average Temperature 32 | . 27 45 . Received Heat Transfer 273 | . 114 93 66 Siege Activations . | . . . . Robots Corrupted . | . . . . Combat Hostiles . | . . . . Parts Fried . | . . . . Impact Corruptions . | . . . . Robots Melted . | . . . . Combat Hostiles . | . . . . Parts Melted 4 | . 4 . . Heat Transferred 2430 | . 1616 703 111 Parts Sabotaged . | . . . . Parts Stolen . | . . . . Parts Stripped . | . . . . Power Chain Reactions . | . . . . Alert | -11 -10 -10 -10 ------- Run | Yrd Mat Min Sub Peak Influence 183 | 5 183 162 . Initial 5 | . 3 5 . Average 58 | 2 62 61 . Maximum Alert Level . | . . . . Low Security (%) 100 | 100 100 100 . Level 1 . | . . . . Level 2 . | . . . . Level 3 . | . . . . Level 4 . | . . . . Level 5 . | . . . . High Security . | . . . . Max Security . | . . . . Squads Dispatched 3 | . 3 . . Investigation 1 | . 1 . . Extermination . | . . . . Reinforcement 2 | . 2 . . Assault . | . . . . Garrison . | . . . . Intercept . | . . . . Searches Triggered . | . . . . Construction Impeded . | . . . . Haulers Reinforced . | . . . . Active Scanning Responses . | . . . . Cargo Convoy Interrupts . | . . . . Stealth | -11 -10 -10 -10 --------- Run | Yrd Mat Min Sub Distress Signals 2 | . 2 . . Communications Jammed . | . . . . Distress Signals . | . . . . Times Spotted 51 | . 29 10 12 Peak Tracking Total 7 | . 7 3 3 Tactical Retreats 7 | . 2 3 2 Traps | -11 -10 -10 -10 ------- Run | Yrd Mat Min Sub Traps Triggered 4 | . 2 . 2 Indirectly . | . . . . Trap Hack Attempts . | . . . . Triggered . | . . . . Disarmed . | . . . . Reprogrammed . | . . . . Reused . | . . . . Traps Extracted . | . . . . Installed . | . . . . Triggered . | . . . . Machines | -11 -10 -10 -10 ---------- Run | Yrd Mat Min Sub Machines Disabled . | . . . . Max in Single Turn . | . . . . Machines Repaired . | . . . . Machines Dismantled . | . . . . Machines Sabotaged . | . . . . Overloaded Fab Kills . | . . . . Hacking | -11 -10 -10 -10 --------- Run | Yrd Mat Min Sub Machines Accessed 6 | . 5 . 1 Terminals 5 | . 5 . . Fabricators . | . . . . Repair Stations . | . . . . Recycling Units . | . . . . Scanalyzers . | . . . . Garrison Access . | . . . . Total Hacks 19 | . 16 . 3 Successful 8 | . 5 . 3 Failed 11 | . 11 . . Catastrophic 4 | . 4 . . Database Lockouts . | . . . . Manual 3 | . 3 . . Terminals 16 | . 16 . . Fabricators . | . . . . Repair Stations . | . . . . Recycling Units . | . . . . Scanalyzers . | . . . . Garrison Access . | . . . . Terminal Hacks 8 | . 5 . 3 Record 3 | . . . 3 Unreport Threat 2 | . 2 . . Dispatch Records 1 | . 1 . . Hauler Manifests 1 | . 1 . . Registered Components 1 | . 1 . . Fabricator Hacks . | . . . . Repair Station Hacks . | . . . . Recycling Unit Hacks . | . . . . Scanalyzer . | . . . . Garrison Access Hacks . | . . . . Unauthorized Hacks . | . . . . Terminals . | . . . . Fabricators . | . . . . Repair Stations . | . . . . Recycling Units . | . . . . Scanalyzers . | . . . . Garrison Access . | . . . . Data Cores Recovered . | . . . . Used . | . . . . Hacking Detections 5 | . 5 . . Full Trace Events . | . . . . Feedback Events . | . . . . Feedback Blocked . | . . . . Robot Schematics Acquired . | . . . . Robots Built . | . . . . Authchips . | . . . . Time . | . . . . Total Robot Build Rating . | . . . . Part Schematics Acquired . | . . . . Parts Built . | . . . . Authchips . | . . . . Time . | . . . . Total Part Build Rating . | . . . . Parts Repaired . | . . . . Time . | . . . . Parts Recycled . | . . . . Recycled Matter . | . . . . Retrieved Matter . | . . . . Retrieved Components . | . . . . Parts Scanalyzed . | . . . . Part Schematics Acquired . | . . . . Parts Damaged . | . . . . Bothacking | -11 -10 -10 -10 ------------ Run | Yrd Mat Min Sub Used RIF Installer . | . . . . Robots Hacked . | . . . . Non-combat . | . . . . Combat . | . . . . Robot Hacks Applied . | . . . . Relay Couplers Released . | . . . . Fabnet Peak Effective % . | . . . . Robots Rewired . | . . . . Allies Hacked . | . . . . Hacks Repelled . | . . . . Allies | -11 -10 -10 -10 -------- Run | Yrd Mat Min Sub Total Allies . | . . . . Largest Group . | . . . . Highest-Rated Group . | . . . . Highest-Rated Ally . | . . . . Total Orders . | . . . . Ally Attacks . | . . . . Total Damage . | . . . . Kills . | . . . . Allies Corrupted . | . . . . Allies Melted . | . . . . Intel | -11 -10 -10 -10 ------- Run | Yrd Mat Min Sub Robot Analysis Total . | . . . . Derelict Logs Recovered 2 | . . . 2 Drone Launches . | . . . . Drone Recoveries . | . . . . Exploration | -11 -10 -10 -10 ------------- Run | Yrd Mat Min Sub Turns Passed 3323 | 114 1192 535 1482 Spaces Moved 1443 | 61 548 234 600 Core 6 | 6 . . . Treads 1410 | 55 521 234 600 Legs 27 | . 27 . . Wheels . | . . . . Hover . | . . . . Flight . | . . . . Fastest Speed 50 | 50 160 160 160 Average Speed 193 | 153 161 191 226 Slowest Speed 250 | 160 190 240 250 Overloaded Moves . | . . . . Propulsion Burnouts . | . . . . Robots Hopped . | . . . . Cave-ins Triggered . | . . . . Exploration Rate (%) 45 | 4 78 58 42 Regions Visited 3 Branch Regions 2 Pre-discovered Areas 2 | . . . 2 Known Exits Taken . | . . . . Unknown Exits Taken 3 | 1 1 1 . Scrap Searched 8 | . . 3 5 Spaces Dug 1 | . . . 1 Terrain Destroyed 8 | . . 7 1 Melee . | . . . . Projectile 4 | . . 3 1 AOE 4 | . . 4 . Terrain Rammed . | . . . . Walls Destroyed . | . . . . Machines Disabled . | . . . . Actions | -11 -10 -10 -10 --------- Run | Yrd Mat Min Sub Total 1772 | 78 744 273 677 Wait 123 | 1 106 3 13 Move 1440 | 60 547 233 600 Hop . | . . . . Pick Up 32 | 7 11 2 12 Fast Attach 10 | 4 3 1 2 Attach 9 | 4 1 2 2 Detach 1 | 1 . . . Swap 23 | . 8 4 11 Drop 23 | . 11 1 11 Fire 111 | 1 57 27 26 Melee . | . . . . Ram . | . . . . Kick . | . . . . Crush . | . . . . Escape Stasis . | . . . . Rewire . | . . . . Trap . | . . . . Miscellaneous . | . . . . Route ------- -11/Scrapyard -10/Materials (discovered 4 exits: [*Mat x2] / [*Min] / *Sub) -10/Mines -10/Subcaves History --------- Turn | Location | Event 18 | -11/Scrapyard | Discovered new exit (range 16) 115 | -11/Scrapyard | Entered Materials 212 | -10/Materials | Discovered new exit (range 16) 315 | -10/Materials | Build established: Mutant 425 | -10/Materials | Discovered new exit (range 15) 498 | -10/Materials | Discovered new exit (range 15) 915 | -10/Materials | Derelicts attacked the area 1035 | -10/Materials | Build established: Scavenger-Mutant 1094 | -10/Materials | Discovered new exit (range 6) 1307 | -10/Materials | Entered Mines 1411 | -10/Mines | Excavation squad dispatched 1411 | -10/Mines | A large section of the Mines collapsed 1661 | -10/Mines | Excavation squad dispatched 1825 | -10/Mines | Discovered new exit (range 7) 1842 | -10/Mines | Entered Subcaves 2114 | -10/Subcaves | Core integrity fell below 50% 2232 | -10/Subcaves | Learned location of Zion (-7) 2232 | -10/Subcaves | Met a Zionite searching for "candidates" 2375 | -10/Subcaves | Visited Clippyterm 2382 | -10/Subcaves | Learned Factory trap positions 2419 | -10/Subcaves | Build established: Mutant 2868 | -10/Subcaves | Core integrity fell below 20% 2917 | -10/Subcaves | A swath of the cavern ceiling suddenly collapsed 3065 | -10/Subcaves | Shifting Twisted Machinery released Spk. Treads 3082 | -10/Subcaves | Shifting Twisted Machinery released Mak. Light Armor Plating 3262 | -10/Subcaves | Learned 2 Materials zone layouts 3324 | -10/Subcaves | Destroyed by Shrapnel Trap Last Messages --------------- 02867_ Spikes shoot up from the floor. 02867_ Critical hit (Impale). A swath of the cavern ceiling suddenly collapses. 02985_ Lgt. Armor Plating destroyed. 03006_ 4F-5HP(R) destroyed. 03009_ Acquired 35 matter. Spk. Treads falls loose from the Twisted Machinery. Mak. Light Armor Plating falls loose from the Twisted Machinery. 03096_ Acquired Mak. Light Armor Plating. 03167_ Sub. Power Source shoots sparks and powers down. 03239_ The unstable cave ceiling collapses. 03262_ Acquired derelict log, extracted data. Data stored: Materials zone layouts (x2). 03324_ Triggered Shrapnel Trap. 03324_ An expanding cloud of shrapnel blasts out in all directions. Map ----- +----------------------------------------------------+ | ???# "" " # " # #????????????????????????????? | | ???##"" "" "## "####????????????????????????????? | | ????#### "" "## "#####???????????????????????????? | | ???????##"" "###" ######??????????????????????? | | ??????### "" "" #??????????????????????? | | ??????# "" "" ##??????????????????????? | | ??????## """" "" ### #???????????????????????? | | ???????##### """###??###???????????????????????? | | ???????????## """"#####??????????????????????????? | | ????####???##"" """" #??????????????????????????? | | ????# "#?### "" #??????????????????????????? | | ????# "##"" ##???????????????????????????? | | ????# """ ##???????????????????????????? | | ?????# ## #???????????????????????????? | | ?????## ## #####???????????????????????? | | ??????### ## ## ##??????????????????????? | | ??????### ## ## #??????????????????????? | | ??????# ## ### ##?????????????????????? | | ??????????# # # #?????????????????????? | | ?????????## ## #?????????????????????? | | ?????????# #### #?# ##????????????????????? | | ????????# #?## #??# #????????????????????? | | ????????## ##?# ##?# #?????????????????????? | | ?????????##???# ##### ##?????????????????????? | | ??????????????## #### #??????????????????????? | | ??????????????## ## @##?????????????????????? | | ??????????????# ^ #?????????????????????? | | ????????????# #?????????????????????? | | ???????????# ##?????????????????????? | | ???????? ### #??????????????????????? | | ??????? ##??# #??????????????????????? | | ??????? #????# #?????????????????????? | | ??????? ?????# #????????????????????? | | ??????? ?????# ### #???????????????????? | | ??????? ??????####??# ??????????????????? | | ???????? ?????????????# ?????????????????? | | ?????????? ????????????????# ????????????????? | | ????????????????????????????#####????????????????? | | ?????????????????????????????????????????????????? | | ?????????????????????????????????????????????????? | | ?????????????????????????????????????????????????? | | ?????????????????????????????????????????????????? | | ?????????????????????????????????????????????????? | | ?????????????????????????????????????????????????? | | ?????????????????????????????????????????????????? | | ?????????????????????????????????????????????????? | | ?????????????????????????????????????????????????? | | ?????????????????????????????????????????????????? | | ?????????????????????????????????????????????????? | | ?????????????????????????????????????????????????? | +----------------------------------------------------+ Best States ------------- Heat Dissipation 25 Energy Generation 15 Energy Capacity 250 Matter Stores 300 Matter Capacity 300 Sight Range 16 Terrain Scan Density 10 Armor Coverage 150 Evasion (%) 40 Recoil Reduction 2 Item Schematics ----------------- None Robot Schematics ------------------ None Fabricated ------------ Nothing Alien Tech Used ----------------- None Achievements -------------- None Challenges ------------ None Game ------ Seed RecoilMyomerClaymores Manual? 0 Play Time 00:24:15 Cumulative 32.0 hours Start 2024.10.19 @ 14:07:05 End 2024.10.19 @ 14:31:11 Sessions 1 Manual Loads 0 Difficulty Rogue Special Mode None Game No. 33 Rogue 33 Adventurer 0 Explorer 0 Win Type - Total 0 Types 0/0/0/0/0/0/0/0/0 Lore% 22 Gallery% 29 Achievement% 28 Wizard Run 0 Options --------- Layout 1 ASCII 0 Keyboard 0 Movement Arrows Keybinds 0 Fullscreen 2 Font 24/Terminus Map View 50x35 Zoom Use 0% Tactical HUD 1 Map Filters NONE Filters NONE Steam 1 RUN: 59701590-3a2b-4e93-bfa6-56a44f2937b9